[Event "Titled Tuesday Blitz August 15 Late 2023"]
[White "Gamayev, Oleg"]
[Black "Ai, Evan"]
[WhiteFideId "2802813"]
[BlackFideId "2094770"]
[WhiteElo "2557"]
[BlackElo "2263"]
[Result "1-0"]
[Round "6"]
[TimeControl "180+1"]
[Date "2023.08.15"]
[WhiteClock "0:02:50"]
[BlackClock "0:00:09"]
[Board "134"]

1. d3 {[%clk 0:03:00]}  d5 {[%clk 0:02:55]} 2. e4 {[%clk 0:03:01]}  dxe4 {[%clk 0:02:56]} 3. dxe4 {[%clk 0:03:02]}  Qxd1+ {[%clk 0:02:57]} 4. Kxd1 {[%clk 0:03:02]}  Nf6 {[%clk 0:02:58]} 5. f3 {[%clk 0:03:02]}  e5 {[%clk 0:02:51]} 6. Nd2 {[%clk 0:03:03]}  Be6 {[%clk 0:02:42]} 7. c3 {[%clk 0:03:03]}  Nbd7 {[%clk 0:02:36]} 8. Bc4 {[%clk 0:03:04]}  Bxc4 {[%clk 0:02:31]} 9. Nxc4 {[%clk 0:03:05]}  O-O-O {[%clk 0:02:30]} 10. Kc2 {[%clk 0:03:04]}  h6 {[%clk 0:02:22]} 11. a4 {[%clk 0:03:04]}  a6 {[%clk 0:02:03]} 12. Ne2 {[%clk 0:03:04]}  Bc5 {[%clk 0:02:01]} 13. b4 {[%clk 0:03:03]}  Be7 {[%clk 0:01:47]} 14. Be3 {[%clk 0:03:03]}  b6 {[%clk 0:01:45]} 15. Rhd1 {[%clk 0:03:02]}  Kb7 {[%clk 0:01:44]} 16. Rd2 {[%clk 0:03:02]}  Rhe8 {[%clk 0:01:29]} 17. Rad1 {[%clk 0:03:02]}  Kc8 {[%clk 0:00:59]} 18. Nc1 {[%clk 0:03:01]}  Ng8 {[%clk 0:00:55]} 19. Nd3 {[%clk 0:02:59]}  f6 {[%clk 0:00:54]} 20. Nc1 {[%clk 0:02:59]}  Nb8 {[%clk 0:00:53]} 21. Rxd8+ {[%clk 0:02:58]}  Rxd8 {[%clk 0:00:54]} 22. Rxd8+ {[%clk 0:02:58]}  Kxd8 {[%clk 0:00:55]} 23. Nb3 {[%clk 0:02:58]}  Kd7 {[%clk 0:00:46]} 24. Nb2 {[%clk 0:02:58]}  Ke6 {[%clk 0:00:45]} 25. Nd3 {[%clk 0:02:59]}  Bd6 {[%clk 0:00:45]} 26. h3 {[%clk 0:02:59]}  Ne7 {[%clk 0:00:41]} 27. b5 {[%clk 0:02:59]}  axb5 {[%clk 0:00:38]} 28. axb5 {[%clk 0:02:59]}  Nd7 {[%clk 0:00:27]} 29. Nd2 {[%clk 0:02:57]}  c6 {[%clk 0:00:22]} 30. bxc6 {[%clk 0:02:54]}  Nxc6 {[%clk 0:00:23]} 31. Nc4 {[%clk 0:02:54]}  Bc7 {[%clk 0:00:23]} 32. Kb3 {[%clk 0:02:53]}  b5 {[%clk 0:00:23]} 33. Na3 {[%clk 0:02:53]}  Na5+ {[%clk 0:00:15]} 34. Kc2 {[%clk 0:02:53]}  Nc4 {[%clk 0:00:13]} 35. Nxc4 {[%clk 0:02:50]}  bxc4 {[%clk 0:00:13]} 36. Nb2 {[%clk 0:02:50]}  f5 {[%clk 0:00:12]} 37. Nxc4 {[%clk 0:02:49]}  fxe4 {[%clk 0:00:11]} 38. fxe4 {[%clk 0:02:50]}  Nf6 {[%clk 0:00:12]} 39. Kd3 {[%clk 0:02:50]}  Ng8 {[%clk 0:00:10]} 40. Nd2 {[%clk 0:02:50]}  g5 {[%clk 0:00:10]} 41. Nf3 {[%clk 0:02:50]}  Nf6 {[%clk 0:00:10]} 42. Nh2 {[%clk 0:02:50]}  Bd8 {[%clk 0:00:10]} 43. Ng4 {[%clk 0:02:50]}  Nxg4 {[%clk 0:00:08]} 44. hxg4 {[%clk 0:02:51]}  Kf6 {[%clk 0:00:08]} 45. Kc4 {[%clk 0:02:51]}  Kg6 {[%clk 0:00:08]} 46. Kd5 {[%clk 0:02:52]}  h5 {[%clk 0:00:09]} 47. gxh5+ {[%clk 0:02:51]}  Kxh5 {[%clk 0:00:09]} 48. Kxe5 {[%clk 0:02:51]}  Kg4 {[%clk 0:00:10]} 49. c4 {[%clk 0:02:50]}  Kg3 {[%clk 0:00:11]} 50. Kf5 {[%clk 0:02:50]}  Kxg2 {[%clk 0:00:11]} 51. Bxg5 {[%clk 0:02:50]}  Bb6 {[%clk 0:00:10]} 52. Be7 {[%clk 0:02:49]}  Kf3 {[%clk 0:00:10]} 53. Bd6 {[%clk 0:02:49]}  Ke3 {[%clk 0:00:10]} 54. c5 {[%clk 0:02:49]}  Bd8 {[%clk 0:00:09]} 55. c6 {[%clk 0:02:50]} 1-0


[Site "https://www.chess.com"]

[Event "Titled Tuesday Blitz August 15 Late 2023"]
[White "Graif, William"]
[Black "Vaglio Munoz, Jaime"]
[WhiteFideId "2609835"]
[BlackFideId "6500145"]
[WhiteElo "2541"]
[BlackElo "2241"]
[Result "1-0"]
[Round "6"]
[TimeControl "180+1"]
[Date "2023.08.15"]
[WhiteClock "0:00:08"]
[BlackClock "0:00:39"]
[Board "135"]

1. e4 {[%clk 0:03:00]}  c5 {[%clk 0:02:59]} 2. Nc3 {[%clk 0:03:00]}  Qa5 {[%clk 0:02:59]} 3. f4 {[%clk 0:02:47]}  a6 {[%clk 0:02:59]} 4. Nf3 {[%clk 0:02:47]}  b5 {[%clk 0:02:59]} 5. g3 {[%clk 0:02:24]}  Bb7 {[%clk 0:02:59]} 6. d3 {[%clk 0:02:14]}  e6 {[%clk 0:02:56]} 7. Bg2 {[%clk 0:02:09]}  b4 {[%clk 0:02:55]} 8. Ne2 {[%clk 0:02:07]}  d5 {[%clk 0:02:55]} 9. O-O {[%clk 0:01:54]}  Nf6 {[%clk 0:02:48]} 10. e5 {[%clk 0:01:51]}  Nfd7 {[%clk 0:02:48]} 11. f5 {[%clk 0:01:37]}  Nc6 {[%clk 0:02:40]} 12. fxe6 {[%clk 0:01:31]}  fxe6 {[%clk 0:02:41]} 13. Nf4 {[%clk 0:01:22]}  Nd8 {[%clk 0:02:33]} 14. Ng5 {[%clk 0:01:12]}  Qb6 {[%clk 0:02:06]} 15. Qh5+ {[%clk 0:01:07]}  g6 {[%clk 0:01:55]} 16. Nxg6 {[%clk 0:01:03]}  hxg6 {[%clk 0:01:55]} 17. Qxh8 {[%clk 0:00:33]}  Nc6 {[%clk 0:01:25]} 18. Nxe6 {[%clk 0:00:30]}  Ncxe5 {[%clk 0:01:24]} 19. Nxf8 {[%clk 0:00:25]}  O-O-O {[%clk 0:01:24]} 20. Nxd7 {[%clk 0:00:24]}  Nxd7 {[%clk 0:01:18]} 21. Qg7 {[%clk 0:00:21]}  c4+ {[%clk 0:01:13]} 22. d4 {[%clk 0:00:20]}  Qe6 {[%clk 0:01:01]} 23. Bg5 {[%clk 0:00:19]}  Rg8 {[%clk 0:01:01]} 24. Qf7 {[%clk 0:00:17]}  Qxf7 {[%clk 0:00:57]} 25. Rxf7 {[%clk 0:00:17]}  Bc6 {[%clk 0:00:49]} 26. Bh3 {[%clk 0:00:15]}  Kc7 {[%clk 0:00:46]} 27. Re1 {[%clk 0:00:14]}  b3 {[%clk 0:00:43]} 28. axb3 {[%clk 0:00:13]}  cxb3 {[%clk 0:00:43]} 29. cxb3 {[%clk 0:00:14]}  Kb6 {[%clk 0:00:43]} 30. Bxd7 {[%clk 0:00:13]}  Bb7 {[%clk 0:00:41]} 31. Be6 {[%clk 0:00:12]}  Rb8 {[%clk 0:00:40]} 32. Bf4 {[%clk 0:00:11]}  Ra8 {[%clk 0:00:39]} 33. Rxb7+ {[%clk 0:00:10]}  Ka5 {[%clk 0:00:39]} 34. Bd2# {[%clk 0:00:08]} 1-0


[Site "https://www.chess.com"]

[Event "Titled Tuesday Blitz August 15 Late 2023"]
[White "tomobeast"]
[Black "Musovic, Armin"]
[BlackFideId "939935"]
[WhiteElo "2232"]
[BlackElo "2526"]
[Result "0-1"]
[Round "6"]
[TimeControl "180+1"]
[Date "2023.08.15"]
[WhiteClock "0:02:40"]
[BlackClock "0:02:52"]
[Board "136"]

1. e4 {[%clk 0:02:56]}  c6 {[%clk 0:02:59]} 2. d4 {[%clk 0:02:55]}  d5 {[%clk 0:02:58]} 3. f3 {[%clk 0:02:56]}  Nf6 {[%clk 0:02:58]} 4. e5 {[%clk 0:02:56]}  Ng8 {[%clk 0:02:57]} 5. f4 {[%clk 0:02:56]}  c5 {[%clk 0:02:57]} 6. Nf3 {[%clk 0:02:57]}  Nc6 {[%clk 0:02:56]} 7. c3 {[%clk 0:02:57]}  a6 {[%clk 0:02:56]} 8. Bd3 {[%clk 0:02:58]}  Bg4 {[%clk 0:02:56]} 9. h3 {[%clk 0:02:57]}  Bxf3 {[%clk 0:02:56]} 10. Qxf3 {[%clk 0:02:57]}  cxd4 {[%clk 0:02:57]} 11. O-O {[%clk 0:02:57]}  e6 {[%clk 0:02:57]} 12. f5 {[%clk 0:02:57]}  Nxe5 {[%clk 0:02:57]} 13. Qe2 {[%clk 0:02:57]}  Nxd3 {[%clk 0:02:56]} 14. Qxd3 {[%clk 0:02:58]}  e5 {[%clk 0:02:54]} 15. cxd4 {[%clk 0:02:57]}  e4 {[%clk 0:02:55]} 16. Qg3 {[%clk 0:02:56]}  Nf6 {[%clk 0:02:54]} 17. Bg5 {[%clk 0:02:56]}  h6 {[%clk 0:02:55]} 18. Bf4 {[%clk 0:02:55]}  Nh5 {[%clk 0:02:55]} 19. Qh2 {[%clk 0:02:56]}  Nxf4 {[%clk 0:02:55]} 20. Qxf4 {[%clk 0:02:57]}  Bd6 {[%clk 0:02:55]} 21. Qd2 {[%clk 0:02:57]}  Qg5 {[%clk 0:02:54]} 22. Qa5 {[%clk 0:02:54]}  Qe3+ {[%clk 0:02:50]} 23. Kh1 {[%clk 0:02:54]}  Qg3 {[%clk 0:02:51]} 24. Kg1 {[%clk 0:02:49]}  Qh2+ {[%clk 0:02:51]} 25. Kf2 {[%clk 0:02:50]}  Bg3+ {[%clk 0:02:52]} 26. Ke2 {[%clk 0:02:50]}  Qxg2+ {[%clk 0:02:52]} 27. Kd1 {[%clk 0:02:49]}  Qxf1+ {[%clk 0:02:52]} 28. Kd2 {[%clk 0:02:40]}  Be1+ {[%clk 0:02:52]} 0-1


[Site "https://www.chess.com"]

[Event "Titled Tuesday Blitz August 15 Late 2023"]
[White "Womacka, Mathias"]
[Black "Osmonbekov, Talaibek"]
[WhiteFideId "4611390"]
[BlackFideId "2017253"]
[WhiteElo "2462"]
[BlackElo "2203"]
[Result "0-1"]
[Round "6"]
[TimeControl "180+1"]
[Date "2023.08.15"]
[WhiteClock "0:00:14"]
[BlackClock "0:00:25"]
[Board "137"]

1. e4 {[%clk 0:02:49]}  c5 {[%clk 0:02:59]} 2. Nf3 {[%clk 0:02:44]}  d6 {[%clk 0:02:59]} 3. d4 {[%clk 0:02:45]}  cxd4 {[%clk 0:03:00]} 4. Nxd4 {[%clk 0:02:45]}  Nf6 {[%clk 0:03:01]} 5. Nc3 {[%clk 0:02:45]}  g6 {[%clk 0:03:02]} 6. Be3 {[%clk 0:02:43]}  Bg7 {[%clk 0:03:02]} 7. f3 {[%clk 0:02:43]}  O-O {[%clk 0:03:02]} 8. Qd2 {[%clk 0:02:44]}  Nc6 {[%clk 0:03:03]} 9. O-O-O {[%clk 0:02:44]}  d5 {[%clk 0:03:03]} 10. exd5 {[%clk 0:02:43]}  Nxd5 {[%clk 0:03:03]} 11. Nxc6 {[%clk 0:02:43]}  bxc6 {[%clk 0:03:03]} 12. Bd4 {[%clk 0:02:44]}  Bxd4 {[%clk 0:03:01]} 13. Qxd4 {[%clk 0:02:43]}  Qb6 {[%clk 0:03:02]} 14. Na4 {[%clk 0:02:43]}  Qa5 {[%clk 0:03:02]} 15. b3 {[%clk 0:02:42]}  Rb8 {[%clk 0:02:37]} 16. Bc4 {[%clk 0:02:25]}  Be6 {[%clk 0:02:28]} 17. Qc5 {[%clk 0:02:18]}  Qc7 {[%clk 0:01:23]} 18. Bxd5 {[%clk 0:02:06]}  Bxd5 {[%clk 0:01:23]} 19. Rxd5 {[%clk 0:02:06]}  Rb5 {[%clk 0:01:20]} 20. Qxb5 {[%clk 0:01:48]}  cxb5 {[%clk 0:01:20]} 21. Rxb5 {[%clk 0:01:49]}  Rc8 {[%clk 0:01:19]} 22. c4 {[%clk 0:01:39]}  e6 {[%clk 0:01:09]} 23. h4 {[%clk 0:01:32]}  a6 {[%clk 0:01:06]} 24. Rb6 {[%clk 0:01:24]}  Qf4+ {[%clk 0:01:01]} 25. Kb1 {[%clk 0:01:20]}  a5 {[%clk 0:00:51]} 26. h5 {[%clk 0:01:11]}  Qd2 {[%clk 0:00:36]} 27. hxg6 {[%clk 0:01:07]}  hxg6 {[%clk 0:00:36]} 28. Rb7 {[%clk 0:00:48]}  Rd8 {[%clk 0:00:32]} 29. Nc5 {[%clk 0:00:36]}  Qxg2 {[%clk 0:00:29]} 30. Rc1 {[%clk 0:00:29]}  Qxf3 {[%clk 0:00:29]} 31. Rc7 {[%clk 0:00:29]}  Qf5+ {[%clk 0:00:25]} 32. Kb2 {[%clk 0:00:14]}  Qe5+ {[%clk 0:00:25]} 0-1


[Site "https://www.chess.com"]

[Event "Titled Tuesday Blitz August 15 Late 2023"]
[White "Rangel, Daniel"]
[Black "olackza"]
[WhiteFideId "2124475"]
[WhiteElo "2409"]
[BlackElo "2201"]
[Result "1-0"]
[Round "6"]
[TimeControl "180+1"]
[Date "2023.08.15"]
[WhiteClock "0:00:40"]
[BlackClock "0:00:00"]
[Board "138"]

1. c4 {[%clk 0:02:38]}  e5 {[%clk 0:02:59]} 2. e3 {[%clk 0:02:38]}  Nf6 {[%clk 0:02:51]} 3. b3 {[%clk 0:02:33]}  c6 {[%clk 0:02:48]} 4. Bb2 {[%clk 0:02:33]}  d6 {[%clk 0:02:33]} 5. c5 {[%clk 0:02:33]}  Nbd7 {[%clk 0:02:29]} 6. cxd6 {[%clk 0:02:34]}  Bxd6 {[%clk 0:02:29]} 7. Na3 {[%clk 0:02:34]}  O-O {[%clk 0:02:26]} 8. Nc4 {[%clk 0:02:34]}  Bc7 {[%clk 0:02:26]} 9. Nf3 {[%clk 0:02:34]}  Re8 {[%clk 0:02:24]} 10. Qc2 {[%clk 0:02:29]}  b5 {[%clk 0:01:51]} 11. Na3 {[%clk 0:02:29]}  Bb7 {[%clk 0:01:40]} 12. h4 {[%clk 0:02:26]}  a6 {[%clk 0:01:18]} 13. Ng5 {[%clk 0:02:22]}  h6 {[%clk 0:01:13]} 14. Ne4 {[%clk 0:02:12]}  Nxe4 {[%clk 0:01:04]} 15. Qxe4 {[%clk 0:02:13]}  Nf6 {[%clk 0:01:04]} 16. Qf5 {[%clk 0:02:13]}  c5 {[%clk 0:01:03]} 17. Bd3 {[%clk 0:02:08]}  Bc8 {[%clk 0:00:33]} 18. Qf3 {[%clk 0:02:03]}  Qxd3 {[%clk 0:00:33]} 19. Qxa8 {[%clk 0:02:02]}  Bg4 {[%clk 0:00:32]} 20. Qxe8+ {[%clk 0:02:03]}  Nxe8 {[%clk 0:00:33]} 21. f3 {[%clk 0:02:04]}  Be6 {[%clk 0:00:25]} 22. Rc1 {[%clk 0:02:00]}  e4 {[%clk 0:00:19]} 23. Rxc5 {[%clk 0:01:59]}  Bg3+ {[%clk 0:00:16]} 24. Kd1 {[%clk 0:01:59]}  exf3 {[%clk 0:00:09]} 25. gxf3 {[%clk 0:02:00]}  Nf6 {[%clk 0:00:05]} 26. Bxf6 {[%clk 0:01:46]}  gxf6 {[%clk 0:00:05]} 27. Rg1 {[%clk 0:01:47]}  Qd6 {[%clk 0:00:04]} 28. d4 {[%clk 0:01:29]}  Kh7 {[%clk 0:00:04]} 29. Nc2 {[%clk 0:01:19]}  Bxh4 {[%clk 0:00:03]} 30. Rg2 {[%clk 0:01:15]}  Bg5 {[%clk 0:00:02]} 31. f4 {[%clk 0:01:12]}  Bh3 {[%clk 0:00:02]} 32. Rh2 {[%clk 0:01:10]}  Bg4+ {[%clk 0:00:03]} 33. Kd2 {[%clk 0:01:08]}  b4 {[%clk 0:00:02]} 34. Rh1 {[%clk 0:00:57]}  h5 {[%clk 0:00:03]} 35. fxg5 {[%clk 0:00:55]}  fxg5 {[%clk 0:00:03]} 36. Rxg5 {[%clk 0:00:53]}  Qg3 {[%clk 0:00:04]} 37. Rhxh5+ {[%clk 0:00:41]}  Bxh5 {[%clk 0:00:04]} 38. Rxg3 {[%clk 0:00:42]}  Bg6 {[%clk 0:00:02]} 39. Nxb4 {[%clk 0:00:41]}  Kg7 {[%clk 0:00:00]} 40. Nxa6 {[%clk 0:00:40]} 1-0


[Site "https://www.chess.com"]

[Event "Titled Tuesday Blitz August 15 Late 2023"]
[White "Ottosen, David"]
[Black "rionelG"]
[WhiteFideId "2603080"]
[WhiteElo "2121"]
[BlackElo "2360"]
[Result "1-0"]
[Round "6"]
[TimeControl "180+1"]
[Date "2023.08.15"]
[WhiteClock "0:01:56"]
[BlackClock "0:00:00"]
[Board "141"]

1. e4 {[%clk 0:03:00]}  c5 {[%clk 0:02:51]} 2. Nf3 {[%clk 0:03:01]}  d6 {[%clk 0:02:51]} 3. d4 {[%clk 0:03:01]}  cxd4 {[%clk 0:02:51]} 4. Nxd4 {[%clk 0:03:02]}  Nf6 {[%clk 0:02:51]} 5. Nc3 {[%clk 0:03:02]}  a6 {[%clk 0:02:52]} 6. Be3 {[%clk 0:03:03]}  e5 {[%clk 0:02:52]} 7. Nb3 {[%clk 0:03:03]}  Be7 {[%clk 0:02:52]} 8. Qd2 {[%clk 0:03:04]}  Be6 {[%clk 0:02:52]} 9. f4 {[%clk 0:03:05]}  Qc7 {[%clk 0:02:35]} 10. f5 {[%clk 0:03:05]}  Bc4 {[%clk 0:02:35]} 11. Rg1 {[%clk 0:03:00]}  b5 {[%clk 0:02:32]} 12. Bd3 {[%clk 0:02:57]}  Ng4 {[%clk 0:02:22]} 13. h3 {[%clk 0:02:49]}  Nxe3 {[%clk 0:02:15]} 14. Qxe3 {[%clk 0:02:49]}  h6 {[%clk 0:02:15]} 15. Bxc4 {[%clk 0:02:40]}  Qxc4 {[%clk 0:02:09]} 16. Qd3 {[%clk 0:02:30]}  Qxd3 {[%clk 0:01:46]} 17. cxd3 {[%clk 0:02:30]}  Nd7 {[%clk 0:01:46]} 18. Nd5 {[%clk 0:02:30]}  Nf6 {[%clk 0:01:45]} 19. Nc7+ {[%clk 0:02:29]}  Kd7 {[%clk 0:01:45]} 20. Nxa8 {[%clk 0:02:29]}  Rxa8 {[%clk 0:01:45]} 21. Ke2 {[%clk 0:02:29]}  d5 {[%clk 0:01:40]} 22. Rac1 {[%clk 0:02:20]}  dxe4 {[%clk 0:01:36]} 23. Nc5+ {[%clk 0:02:20]}  Bxc5 {[%clk 0:01:35]} 24. Rxc5 {[%clk 0:02:21]}  exd3+ {[%clk 0:01:25]} 25. Kxd3 {[%clk 0:02:20]}  Kd6 {[%clk 0:01:15]} 26. b4 {[%clk 0:02:19]}  Nd5 {[%clk 0:01:14]} 27. a3 {[%clk 0:02:18]}  Rd8 {[%clk 0:01:07]} 28. Ke4 {[%clk 0:02:17]}  Nf6+ {[%clk 0:01:00]} 29. Kf3 {[%clk 0:02:17]}  Ke7 {[%clk 0:00:58]} 30. Rc7+ {[%clk 0:02:14]}  Kf8 {[%clk 0:00:55]} 31. Rgc1 {[%clk 0:02:12]}  Rd3+ {[%clk 0:00:52]} 32. Ke2 {[%clk 0:02:11]}  Rxa3 {[%clk 0:00:51]} 33. Ra7 {[%clk 0:02:11]}  Ra2+ {[%clk 0:00:44]} 34. Kf1 {[%clk 0:02:09]}  Kg8 {[%clk 0:00:41]} 35. Rcc7 {[%clk 0:02:07]}  Nh5 {[%clk 0:00:22]} 36. Rxf7 {[%clk 0:02:02]}  Rb2 {[%clk 0:00:19]} 37. g4 {[%clk 0:02:00]}  Ng3+ {[%clk 0:00:18]} 38. Ke1 {[%clk 0:01:59]}  e4 {[%clk 0:00:09]} 39. Rxg7+ {[%clk 0:01:59]}  Kf8 {[%clk 0:00:00]} 40. Rgb7 {[%clk 0:01:56]} 1-0


[Site "https://www.chess.com"]

[Event "Titled Tuesday Blitz August 15 Late 2023"]
[White "Okike, David"]
[Black "Joubert, Dantelle"]
[WhiteFideId "8500134"]
[BlackFideId "14310813"]
[WhiteElo "2320"]
[BlackElo "2069"]
[Result "1-0"]
[Round "6"]
[TimeControl "180+1"]
[Date "2023.08.15"]
[WhiteClock "0:01:13"]
[BlackClock "0:00:36"]
[Board "143"]

1. e4 {[%clk 0:03:00]}  c5 {[%clk 0:02:59]} 2. Nf3 {[%clk 0:03:00]}  d6 {[%clk 0:02:59]} 3. d4 {[%clk 0:03:00]}  cxd4 {[%clk 0:02:59]} 4. Nxd4 {[%clk 0:03:00]}  Nf6 {[%clk 0:02:59]} 5. Nc3 {[%clk 0:03:00]}  g6 {[%clk 0:03:00]} 6. Be3 {[%clk 0:03:00]}  Bg7 {[%clk 0:03:00]} 7. f3 {[%clk 0:03:01]}  O-O {[%clk 0:03:00]} 8. Qd2 {[%clk 0:03:01]}  Nc6 {[%clk 0:02:59]} 9. O-O-O {[%clk 0:03:01]}  d5 {[%clk 0:02:57]} 10. Qe1 {[%clk 0:03:01]}  Qa5 {[%clk 0:02:53]} 11. Nb3 {[%clk 0:03:00]}  Qc7 {[%clk 0:02:45]} 12. Nxd5 {[%clk 0:03:00]}  Nxd5 {[%clk 0:02:44]} 13. exd5 {[%clk 0:03:01]}  Ne5 {[%clk 0:02:41]} 14. f4 {[%clk 0:02:53]}  Bf5 {[%clk 0:02:39]} 15. c3 {[%clk 0:02:49]}  Ng4 {[%clk 0:02:11]} 16. Nd4 {[%clk 0:02:38]}  Rfc8 {[%clk 0:01:49]} 17. h3 {[%clk 0:02:34]}  Nxe3 {[%clk 0:01:46]} 18. Qxe3 {[%clk 0:02:35]}  Qa5 {[%clk 0:01:31]} 19. a3 {[%clk 0:02:24]}  Rc7 {[%clk 0:01:15]} 20. Bd3 {[%clk 0:02:05]}  Bxd3 {[%clk 0:01:13]} 21. Qxd3 {[%clk 0:02:03]}  Rac8 {[%clk 0:01:13]} 22. Kb1 {[%clk 0:01:48]}  Qxd5 {[%clk 0:01:11]} 23. Rd2 {[%clk 0:01:43]}  a6 {[%clk 0:01:11]} 24. Re1 {[%clk 0:01:39]}  e5 {[%clk 0:01:08]} 25. fxe5 {[%clk 0:01:38]}  Bxe5 {[%clk 0:01:08]} 26. Nf3 {[%clk 0:01:38]}  Qxd3+ {[%clk 0:01:08]} 27. Rxd3 {[%clk 0:01:38]}  Bf6 {[%clk 0:01:05]} 28. g4 {[%clk 0:01:38]}  h6 {[%clk 0:01:02]} 29. h4 {[%clk 0:01:38]}  Kf8 {[%clk 0:00:56]} 30. g5 {[%clk 0:01:38]}  Bg7 {[%clk 0:00:53]} 31. Re4 {[%clk 0:01:34]}  Re7 {[%clk 0:00:52]} 32. Rde3 {[%clk 0:01:33]}  Rxe4 {[%clk 0:00:52]} 33. Rxe4 {[%clk 0:01:33]}  Re8 {[%clk 0:00:52]} 34. Rxe8+ {[%clk 0:01:32]}  Kxe8 {[%clk 0:00:53]} 35. Kc2 {[%clk 0:01:32]}  Ke7 {[%clk 0:00:53]} 36. c4 {[%clk 0:01:33]}  Ke6 {[%clk 0:00:53]} 37. b4 {[%clk 0:01:32]}  Kf5 {[%clk 0:00:53]} 38. gxh6 {[%clk 0:01:33]}  Bxh6 {[%clk 0:00:52]} 39. Kd3 {[%clk 0:01:33]}  Bg7 {[%clk 0:00:50]} 40. a4 {[%clk 0:01:32]}  Kg4 {[%clk 0:00:50]} 41. Ke2 {[%clk 0:01:30]}  Bc3 {[%clk 0:00:49]} 42. b5 {[%clk 0:01:30]}  axb5 {[%clk 0:00:49]} 43. axb5 {[%clk 0:01:26]}  b6 {[%clk 0:00:48]} 44. Ke3 {[%clk 0:01:25]}  Bb4 {[%clk 0:00:47]} 45. Ne5+ {[%clk 0:01:23]}  Kxh4 {[%clk 0:00:47]} 46. Nxf7 {[%clk 0:01:23]}  Bc5+ {[%clk 0:00:47]} 47. Kf3 {[%clk 0:01:22]}  g5 {[%clk 0:00:48]} 48. Ne5 {[%clk 0:01:22]}  Bd6 {[%clk 0:00:43]} 49. Nd7 {[%clk 0:01:19]}  Bc7 {[%clk 0:00:42]} 50. c5 {[%clk 0:01:16]}  bxc5 {[%clk 0:00:39]} 51. Nxc5 {[%clk 0:01:15]}  g4+ {[%clk 0:00:39]} 52. Kg2 {[%clk 0:01:16]}  Bb6 {[%clk 0:00:35]} 53. Nd7 {[%clk 0:01:14]}  g3 {[%clk 0:00:36]} 54. Nxb6 {[%clk 0:01:14]}  Kg5 {[%clk 0:00:35]} 55. Nc4 {[%clk 0:01:13]}  Kf6 {[%clk 0:00:36]} 56. b6 {[%clk 0:01:14]}  Ke6 {[%clk 0:00:37]} 57. b7 {[%clk 0:01:14]}  Kd7 {[%clk 0:00:36]} 58. b8=Q {[%clk 0:01:13]} 1-0


[Site "https://www.chess.com"]

[Event "Titled Tuesday Blitz August 15 Late 2023"]
[White "Maluco_do_Natal_00"]
[Black "Herman, Matthew"]
[BlackFideId "2028964"]
[WhiteElo "2069"]
[BlackElo "2450"]
[Result "0-1"]
[Round "6"]
[TimeControl "180+1"]
[Date "2023.08.15"]
[WhiteClock "0:00:00"]
[BlackClock "0:00:08"]
[Board "149"]

1. e4 {[%clk 0:03:00]}  c5 {[%clk 0:03:00]} 2. Nf3 {[%clk 0:02:59]}  Nc6 {[%clk 0:02:59]} 3. d4 {[%clk 0:02:58]}  cxd4 {[%clk 0:03:00]} 4. Nxd4 {[%clk 0:02:57]}  e6 {[%clk 0:03:00]} 5. Nb5 {[%clk 0:02:53]}  d6 {[%clk 0:02:57]} 6. Bf4 {[%clk 0:02:52]}  e5 {[%clk 0:02:55]} 7. Be3 {[%clk 0:02:52]}  a6 {[%clk 0:02:55]} 8. N5a3 {[%clk 0:02:37]}  Nf6 {[%clk 0:02:45]} 9. Nc3 {[%clk 0:02:33]}  b5 {[%clk 0:02:42]} 10. Nd5 {[%clk 0:02:30]}  Nxd5 {[%clk 0:02:39]} 11. exd5 {[%clk 0:02:30]}  Ne7 {[%clk 0:02:36]} 12. c4 {[%clk 0:02:06]}  Nf5 {[%clk 0:02:36]} 13. cxb5 {[%clk 0:01:55]}  Nxe3 {[%clk 0:02:37]} 14. fxe3 {[%clk 0:01:54]}  Be7 {[%clk 0:02:34]} 15. bxa6 {[%clk 0:01:43]}  O-O {[%clk 0:02:33]} 16. Bd3 {[%clk 0:01:27]}  Bg5 {[%clk 0:02:33]} 17. Nc2 {[%clk 0:01:12]}  f5 {[%clk 0:02:01]} 18. O-O {[%clk 0:01:04]}  Qb6 {[%clk 0:01:50]} 19. Qc1 {[%clk 0:00:19]}  Bd7 {[%clk 0:01:38]} 20. Kh1 {[%clk 0:00:18]}  g6 {[%clk 0:01:29]} 21. Rb1 {[%clk 0:00:15]}  Rfc8 {[%clk 0:01:25]} 22. Qd1 {[%clk 0:00:14]}  Ba4 {[%clk 0:00:47]} 23. b3 {[%clk 0:00:13]}  Bb5 {[%clk 0:00:48]} 24. Bxb5 {[%clk 0:00:12]}  Qxb5 {[%clk 0:00:48]} 25. Na3 {[%clk 0:00:11]}  Qxa6 {[%clk 0:00:22]} 26. Nc4 {[%clk 0:00:11]}  e4 {[%clk 0:00:16]} 27. a4 {[%clk 0:00:10]}  h5 {[%clk 0:00:13]} 28. Qd4 {[%clk 0:00:10]}  Kf7 {[%clk 0:00:13]} 29. Qb2 {[%clk 0:00:07]}  Bf6 {[%clk 0:00:14]} 30. Qf2 {[%clk 0:00:07]}  Rab8 {[%clk 0:00:12]} 31. Qf4 {[%clk 0:00:06]}  Rd8 {[%clk 0:00:10]} 32. Qh6 {[%clk 0:00:06]}  Bg7 {[%clk 0:00:10]} 33. Qf4 {[%clk 0:00:05]}  Bf6 {[%clk 0:00:11]} 34. Qh6 {[%clk 0:00:05]}  Bg7 {[%clk 0:00:11]} 35. Qf4 {[%clk 0:00:05]}  Rb4 {[%clk 0:00:10]} 36. Rfc1 {[%clk 0:00:02]}  Kg8 {[%clk 0:00:11]} 37. Qg5 {[%clk 0:00:01]}  Rdb8 {[%clk 0:00:08]} 38. h3 {[%clk 0:00:02]}  Kh7 {[%clk 0:00:08]} 39. Nd2 {[%clk 0:00:01]}  Qe2 {[%clk 0:00:07]} 40. Nc4 {[%clk 0:00:01]}  Rxb3 {[%clk 0:00:07]} 41. Rxb3 {[%clk 0:00:01]}  Rxb3 {[%clk 0:00:08]} 42. Qe7 {[%clk 0:00:01]}  Rd3 {[%clk 0:00:07]} 43. Nxd6 {[%clk 0:00:01]}  Rd1+ {[%clk 0:00:07]} 44. Rxd1 {[%clk 0:00:01]}  Qxd1+ {[%clk 0:00:08]} 45. Kh2 {[%clk 0:00:00]}  Qd3 {[%clk 0:00:08]} 0-1


[Site "https://www.chess.com"]